bitfinex/quotes_ETHUSD_20241124
["timestamp","ask_amount","ask_price","bid_price","bid_amount"]
[1732418916215,2.73368129,3419.6,3419.3,0.06885363]
[1732418916416,3.16636168,3419.6,3419.3,0.06885363]
[1732418916617,0.43268668,3419.5,3419.3,0.06885363]
[1732418916944,3.16636797,3419.6,3419.3,0.06885363]
[1732418920961,0.27038867,3419.5,3419.3,0.06885363]
[1732418921147,0.27038867,3419.4,3419.3,0.06885363]
[1732418922628,0.7839,3419.3,3417.2,0.7696]
[1732418922837,6.2940382,3419.6,3417.2,0.7696]
[1732418922838,2.79535152,3417.9,3417.2,0.7696]
[1732418923440,0.27014459,3417.8,3417.2,0.7696]
[1732418923642,2.79535152,3417.9,3417.2,0.7696]
[1732418930184,2.79535152,3417.9,3417.6,0.02215728]
[1732418930388,2.79232213,3417.9,3417.6,0.02215728]
[1732418931095,3.57622213,3417.9,3417.6,0.02215728]
[1732418931998,0.2693884,3417.8,3417.6,0.02215728]
[1732418932297,3.57622213,3417.9,3417.6,0.02215728]
[1732418935694,2.79232213,3417.9,3417.6,0.02215728]
[1732418942638,1.2299681,3417.7,3417.6,0.02215728]
[1732418943713,2.26292959,3417.7,3417.6,0.02215728]
[1732418943902,2.26292304,3417.7,3417.6,0.02215728]
[1732418944704,3.83185328,3417.7,3417.6,0.02215728]
[1732418944950,4.2632991,3417.7,3417.6,0.02215728]
[1732418949021,4.26349866,3417.7,3417.6,0.02215728]
[1732418951648,1.46460032,3417.7,3417.6,0.02215728]
[1732418951823,3.83192923,3417.7,3417.6,0.02215728]
[1732418952027,4.26449905,3417.7,3417.6,0.02215728]
[1732418953461,3.50119905,3417.7,3417.6,0.02215728]
[1732418953950,3.069014,3417.7,3417.6,0.02215728]
[1732418954839,3.06928588,3417.7,3417.6,0.02215728]
[1732418956043,3.06931495,3417.7,3417.6,0.02215728]
[1732418959239,0.27041661,3417.7,3417.6,0.77415728]
[1732418959569,2.79889834,3418.1,3417.6,0.77415728]
[1732418959769,0.27052939,3418.0,3417.6,0.77415728]
[1732418959980,0.27052939,3417.9,3417.6,0.77415728]
[1732418960134,2.79889834,3418.1,3417.6,0.77415728]
[1732418960334,0.27049583,3418.0,3417.6,0.77415728]
[1732418960559,0.27049583,3417.9,3417.6,0.02215728]
[1732418960765,0.7919,3418.0,3417.6,0.02215728]
[1732418960766,2.79889834,3417.7,3417.6,0.02215728]
[1732418960961,3.06939417,3417.7,3417.6,0.02215728]
[1732418962710,2.79889834,3417.7,3417.6,0.02215728]
[1732418963184,3.06935651,3417.7,3417.6,0.02215728]
[1732418968317,2.79889834,3417.7,3417.6,0.02215728]
[1732418968618,3.06914436,3417.7,3417.6,0.02215728]
[1732418970307,3.50170198,3417.7,3417.6,0.02215728]
[1732418971007,3.06920743,3417.7,3417.6,0.02215728]
[1732418973988,3.06920743,3417.7,3417.6,0.01098154]
[1732418974725,1.50031754,3417.7,3417.6,0.01098154]
[1732418975848,0.27030909,3417.7,3417.6,0.01098154]
[1732418976014,1.50031754,3417.7,3417.6,0.01098154]
[1732418976712,3.0690015,3417.7,3417.6,0.01098154]
[1732418977655,3.50149605,3417.7,3417.6,0.01098154]
[1732418977808,3.0690015,3417.7,3417.6,0.01098154]
[1732418978015,3.8484015,3417.7,3417.6,0.01098154]
[1732418978316,4.28089605,3417.7,3417.6,0.01098154]
[1732418981028,4.27457807,3417.7,3417.6,0.01098154]
[1732418984365,3.49517807,3417.7,3417.6,0.01098154]
[1732418984960,3.06268352,3417.7,3417.6,0.01098154]
[1732418985120,2.79869241,3417.7,3417.6,0.01098154]
[1732418986065,3.23173853,3417.7,3417.6,0.01098154]
[1732418986356,2.79869241,3417.7,3417.6,0.01098154]
[1732418988589,3.23173853,3417.7,3417.6,0.01098154]
[1732418989556,2.79869241,3417.7,3417.6,0.01098154]
[1732418990174,3.23173853,3417.7,3417.6,0.01098154]
[1732418991096,2.79869241,3417.7,3417.6,0.01098154]
[1732418991802,3.23173853,3417.7,3417.6,0.01098154]
[1732418991970,2.79869241,3417.7,3417.6,0.01098154]
[1732418992601,3.23173853,3417.7,3417.6,0.01098154]
[1732418993095,3.06964478,3417.7,3417.6,0.01098154]
[1732418993897,3.5026909,3417.7,3417.6,0.01098154]
[1732418996169,2.79869241,3417.7,3417.6,0.01098154]
[1732418996379,3.06969171,3417.7,3417.6,0.01098154]
[1732418996764,1.5010426,3417.7,3417.6,0.01098154]
[1732418997106,1.93464148,3417.7,3417.6,0.01098154]
[1732418997261,1.5010426,3417.7,3417.6,0.01098154]
[1732418997658,1.93464148,3417.7,3417.6,0.01098154]
[1732418997912,1.5010426,3417.7,3417.6,0.01098154]
[1732418998313,1.93464148,3417.7,3417.6,0.01098154]
[1732418998516,1.5010426,3417.7,3417.6,0.01098154]
[1732418999018,1.93464148,3417.7,3417.6,0.01098154]
[1732418999225,1.5010426,3417.7,3417.6,0.01098154]
[1732419000086,1.50118058,3417.7,3417.6,0.01098154]
[1732419000887,1.93500023,3417.7,3417.6,0.01098154]
[1732419001108,1.50118058,3417.7,3417.6,0.01098154]
[1732419001529,1.93500023,3417.7,3417.6,0.01098154]
[1732419001730,1.50118058,3417.7,3417.6,0.01098154]
[1732419002521,1.2300433,3417.7,3417.6,0.01098154]
[1732419002831,1.50117477,3417.7,3417.6,0.01098154]
[1732419003187,1.50117477,3417.7,3417.6,0.79808154]
[1732419006306,1.5011657,3417.7,3417.6,0.79808154]
[1732419007733,1.2300433,3417.7,3417.6,0.79808154]
[1732419007889,1.50113301,3417.7,3417.6,0.79808154]
[1732419009334,1.49221301,3417.7,3417.6,0.79808154]
[1732419009703,1.49221301,3417.7,3417.6,0.01098154]
[1732419011025,1.49205302,3417.7,3417.6,0.01098154]
[1732419012324,0.27092972,3417.7,3417.6,0.01098154]
[1732419013340,0.27092972,3417.7,3417.6,0.79808154]
[1732419013545,1.2300433,3418.4,3417.6,0.79808154]
[1732419013779,0.27087448,3418.3,3417.7,0.81635706]
[1732419013939,1.2300433,3418.8,3417.8,0.7871]
[1732419014144,0.27090382,3418.7,3417.8,0.7871]
[1732419014343,0.27090382,3418.6,3417.8,0.7871]
[1732419014577,0.27090382,3418.5,3417.8,0.7871]
[1732419014885,1.2300433,3418.8,3417.8,0.7871]
[1732419015066,0.27067155,3418.7,3417.8,0.7871]
[1732419015254,0.27067155,3418.6,3417.8,0.7871]
[1732419015458,1.2300433,3418.8,3417.8,0.7871]
[1732419015678,0.27049135,3418.7,3417.8,0.7871]
[1732419015980,1.2300433,3419.0,3417.9,0.8013524]
[1732419016284,0.27051108,3418.9,3417.9,0.8013524]
[1732419016444,1.2300433,3419.0,3417.9,0.8013524]
[1732419016852,0.27031009,3418.9,3417.9,0.8013524]
[1732419017047,1.2300433,3419.0,3417.9,0.8013524]
[1732419017299,0.27027159,3418.9,3417.9,0.8013524]
[1732419017584,1.2300433,3419.0,3417.9,0.8013524]
[1732419017902,0.27016411,3418.9,3417.9,0.8013524]
[1732419018098,1.2300433,3419.0,3417.9,0.8013524]
[1732419018259,0.27015592,3418.9,3417.9,0.8013524]
[1732419018459,1.2300433,3419.0,3417.9,0.8013524]
[1732419018706,1.2300433,3418.6,3417.9,0.7721]
[1732419018906,1.2300433,3418.3,3417.9,0.7721]
[1732419019603,1.2300433,3418.5,3417.9,0.7721]
[1732419021371,0.801352,3419.7,3417.9,0.7721]
[1732419021372,1.2300433,3418.7,3417.9,0.7721]
[1732419022173,1.2300433,3418.2,3417.9,0.7721]
[1732419024472,1.22947189,3418.1,3417.7,0.7721]
[1732419025076,1.22947189,3417.8,3417.6,0.01098154]
[1732419028116,1.22947189,3418.1,3417.6,0.01098154]
[1732419028271,1.22947189,3418.1,3417.7,0.7721]
[1732419030673,2.79728315,3418.3,3417.7,0.7721]
[1732419030912,0.2701546,3418.2,3417.7,0.7721]
[1732419031114,2.79728315,3418.3,3417.7,0.7721]
[1732419031313,0.27015649,3418.2,3417.7,0.7721]
[1732419031492,2.79728315,3418.3,3417.7,0.7721]
[1732419031717,0.27015589,3418.2,3417.7,0.7721]
[1732419031929,2.79728315,3418.3,3417.7,0.7721]
[1732419032236,0.27013557,3418.2,3417.7,0.7721]
[1732419032407,2.79728315,3418.3,3417.7,0.7721]
[1732419032733,0.27016407,3418.2,3417.7,0.7721]
[1732419033047,2.79728315,3418.3,3417.7,0.7721]
[1732419033352,0.27013888,3418.2,3417.7,0.7721]
[1732419033642,0.27013888,3418.1,3417.7,0.7721]
[1732419033942,2.79728315,3418.3,3417.7,0.7721]
[1732419034148,0.27009758,3418.2,3417.7,0.7721]
[1732419034355,2.79728315,3418.3,3417.7,0.7721]
[1732419034562,2.79728315,3418.7,3417.7,0.7721]
[1732419034726,0.27015859,3418.6,3417.7,0.7721]
[1732419034912,2.79728315,3418.7,3417.7,0.7721]
[1732419035115,0.43233432,3419.0,3417.7,0.7721]
[1732419035309,0.27022216,3418.9,3417.9,0.7528]
[1732419035538,0.27021809,3418.8,3417.9,0.7528]
[1732419035737,3.56418315,3419.1,3417.9,0.7528]
[1732419036014,0.27021561,3419.0,3417.9,0.7528]
[1732419036323,0.27021561,3418.9,3417.9,0.7528]
[1732419036534,0.27021561,3418.8,3417.9,0.7528]
[1732419036706,2.79728315,3419.1,3418.0,0.79745396]
[1732419036905,0.27017779,3419.0,3418.0,0.7682]
[1732419037127,0.27017779,3418.9,3418.0,0.7682]
[1732419037303,2.79728315,3419.1,3418.0,0.7682]
[1732419037534,0.27013028,3419.0,3418.0,0.7682]
[1732419037850,0.27013028,3418.9,3418.0,0.7682]
[1732419038051,2.79728315,3418.7,3418.0,0.7682]
[1732419038750,0.27016629,3418.6,3418.0,0.7682]
[1732419038962,0.7989,3418.2,3417.7,0.7682]
[1732419039113,0.7989,3418.2,3417.6,0.01098154]
[1732419039313,0.27016629,3418.1,3417.6,0.01098154]
[1732419039657,0.27016629,3418.0,3417.6,0.01098154]
[1732419039861,3.06744944,3417.9,3417.6,0.01098154]
[1732419040151,0.27012262,3417.8,3417.6,0.01098154]
[1732419040310,2.79728315,3417.9,3417.6,0.01098154]
[1732419040509,0.27014499,3417.8,3417.6,0.01098154]
[1732419040742,2.79728315,3417.9,3417.6,0.01098154]
[1732419040743,1.06902717,3417.7,3417.6,0.01098154]
[1732419042227,1.50114697,3417.7,3417.6,0.01098154]
[1732419042425,1.06902717,3417.7,3417.6,0.01098154]
[1732419042631,0.7989,3417.7,3417.6,0.01098154]
[1732419042842,1.06880225,3417.7,3417.6,0.01098154]
[1732419046316,1.0183623,3417.7,3417.6,0.01098154]
[1732419046760,1.01833103,3417.7,3417.6,0.01098154]
[1732419048842,0.26943103,3417.7,3417.6,0.01098154]
[1732419049022,0.26360103,3417.7,3417.6,0.01098154]
[1732419050317,2.79728315,3417.9,3417.6,0.01098154]
[1732419051328,0.8138,3417.8,3417.6,0.01098154]
[1732419051534,1.24486101,3417.8,3417.6,0.01098154]
[1732419051735,0.8138,3417.7,3417.6,0.01098154]
[1732419057728,1.37985237,3417.7,3417.6,0.01098154]
[1732419058601,0.7997,3417.6,3416.4,0.7556]
[1732419058764,2.79728315,3416.8,3415.2,0.765]
[1732419058964,2.79728315,3416.8,3415.3,0.765]
[1732419060612,2.75909078,3416.8,3415.3,0.765]
[1732419060968,0.26917318,3416.7,3415.3,0.765]
[1732419061169,2.75909078,3416.8,3415.3,0.765]
[1732419061572,0.26917249,3416.7,3415.3,0.765]
[1732419061813,2.75909078,3416.8,3415.3,0.765]
[1732419061971,0.26912421,3416.7,3415.3,0.765]
[1732419062900,0.7997,3416.9,3415.5,0.765]
[1732419063100,0.2691096,3416.8,3415.5,0.765]
[1732419063281,0.7997,3416.9,3415.5,0.765]
[1732419063476,0.26910825,3416.8,3415.5,0.765]
[1732419063676,0.7997,3416.9,3415.6,0.765]
[1732419063904,0.26910846,3416.8,3415.8,0.765]
[1732419064106,0.7997,3416.9,3415.8,0.765]
[1732419064480,2.79728315,3417.0,3415.8,0.765]
[1732419064788,0.26912925,3416.9,3415.8,0.765]
[1732419064995,2.79728315,3417.0,3415.8,0.765]
[1732419065202,0.26914148,3416.9,3415.8,0.765]
[1732419065404,0.26914148,3416.9,3415.9,0.765]
[1732419065613,2.79728315,3417.0,3415.9,0.765]
[1732419065614,0.7997,3417.2,3415.9,0.765]
[1732419065810,0.26927793,3417.1,3415.9,0.765]
[1732419066014,2.79728315,3417.4,3415.9,0.765]
[1732419066215,0.26928695,3417.3,3416.0,0.79427152]
[1732419066533,0.43119478,3417.7,3416.0,0.79427152]
[1732419066734,0.26950157,3417.6,3416.1,0.765]
[1732419067022,0.26950157,3417.5,3416.1,0.765]
[1732419067232,0.26950157,3417.4,3416.1,0.765]
[1732419067404,0.26950157,3417.3,3416.1,0.765]
[1732419067726,0.43119478,3417.7,3416.2,0.765]
[1732419067914,0.2697519,3417.6,3416.4,0.765]
[1732419068125,0.26976457,3417.5,3416.4,0.765]
[1732419068293,0.26976457,3417.4,3416.4,0.765]
[1732419068493,0.26976457,3417.3,3416.4,0.765]
[1732419068708,0.26976457,3417.2,3416.4,0.765]
[1732419069032,0.27005278,3417.1,3416.4,0.765]
[1732419069185,0.43208445,3417.7,3416.4,0.765]
[1732419069388,0.27016906,3417.6,3416.4,0.765]
[1732419069602,0.27016906,3417.5,3416.4,0.765]
[1732419069812,0.27016906,3417.4,3416.4,0.765]
[1732419070023,0.27016906,3417.3,3416.4,0.765]
[1732419070220,0.27016906,3417.7,3416.4,0.765]
[1732419070525,0.27016906,3417.6,3416.4,0.765]
[1732419070728,0.27016906,3417.5,3416.4,0.765]
[1732419070929,0.17471953,3417.4,3416.4,0.765]
[1732419071094,0.43208445,3417.7,3416.4,0.765]
[1732419071624,2.79728315,3417.8,3416.4,0.765]
[1732419071826,3.2293676,3417.8,3416.4,0.765]
[1732419072035,3.59698315,3417.4,3416.4,0.765]
[1732419072190,0.43208445,3417.3,3416.4,0.765]
[1732419073580,2.79728315,3417.0,3416.4,0.765]
[1732419074069,2.18646299,3417.0,3416.4,0.765]
[1732419074277,0.7744,3416.9,3416.1,0.7969]
[1732419075172,2.79728315,3416.6,3416.1,0.7969]
[1732419075358,2.79728315,3416.6,3416.0,0.875]
[1732419077172,0.7744,3416.5,3416.0,0.875]
[1732419077472,1.20681871,3416.5,3416.0,0.875]
[1732419080737,0.43241871,3416.5,3416.0,0.875]
[1732419080977,3.22970186,3416.6,3416.0,1.04219]
[1732419081180,0.43241871,3416.5,3416.1,0.7969]
[1732419081633,2.79728315,3416.6,3416.1,0.7969]
[1732419081834,2.79728315,3416.6,3416.1,0.96409]
[1732419082861,0.27016957,3416.5,3416.1,0.96409]
[1732419083058,0.27016957,3416.4,3416.1,0.7969]
[1732419083265,0.27016957,3416.3,3416.1,0.7969]
[1732419083558,2.79728315,3416.6,3416.1,0.7969]
[1732419083757,0.27016544,3416.5,3416.1,0.7969]
[1732419084286,0.27016544,3416.4,3416.0,0.875]
[1732419084438,0.27016544,3416.3,3416.0,0.875]
[1732419084637,0.27016544,3416.2,3416.0,0.875]
[1732419084866,0.27016544,3416.1,3416.0,0.875]
[1732419086744,0.43226471,3416.5,3416.0,0.875]
[1732419086945,1.04441473,3416.4,3416.0,0.875]
[1732419087252,0.27001473,3416.3,3416.0,0.875]
[1732419090631,2.79728315,3416.6,3416.1,0.7969]
[1732419090836,0.27002875,3416.5,3416.1,0.7969]
[1732419091002,0.27002875,3416.4,3416.1,0.7969]
[1732419091327,0.43207129,3416.9,3416.3,0.7969]
[1732419091519,2.79728315,3417.0,3416.3,0.7969]
[1732419091716,0.27005658,3416.9,3416.3,0.7969]
[1732419091924,0.27005658,3416.8,3416.3,0.96409]
[1732419092128,3.22937368,3417.0,3416.3,0.7969]
[1732419092129,0.27005658,3416.7,3416.3,0.7969]
[1732419092341,3.06733973,3416.6,3416.3,0.7969]
[1732419092506,3.06733973,3416.6,3416.0,0.875]
[1732419092507,0.27005658,3416.5,3416.1,0.7969]
[1732419092831,0.27005658,3416.4,3416.1,0.7969]
[1732419093036,0.27005658,3416.3,3416.1,0.7969]
[1732419093347,3.2293511,3416.6,3416.1,0.7969]
[1732419093647,0.27003894,3416.5,3416.1,0.7969]
[1732419093804,0.27003894,3416.4,3416.1,0.76112178]
[1732419094007,0.27003894,3416.3,3416.1,0.76112178]
[1732419094234,3.22939475,3416.6,3416.1,0.76112178]
[1732419094452,2.79728315,3416.2,3416.0,0.875]
[1732419094756,0.2700546,3416.1,3416.0,0.875]
[1732419094907,0.27005125,3416.1,3416.0,0.875]
[1732419095244,1.06405125,3416.1,3416.0,0.875]
[1732419095446,1.49613783,3416.1,3416.0,0.875]
[1732419095803,0.70213783,3416.1,3416.0,0.875]
[1732419096008,0.27005125,3416.1,3416.0,0.875]
[1732419096809,3.0673344,3416.1,3416.0,0.875]
[1732419097036,3.8613344,3416.1,3416.0,0.875]
[1732419097234,4.29342098,3416.1,3416.0,0.875]
[1732419099436,4.29743878,3416.1,3416.0,0.875]
[1732419102913,0.70213783,3416.1,3416.0,0.875]
[1732419103107,0.27005125,3416.1,3416.0,1.7078]
[1732419103326,3.0713522,3416.1,3416.0,0.875]
[1732419105953,3.50427216,3416.1,3416.0,0.875]
[1732419106127,3.07167449,3416.1,3416.0,0.875]
[1732419106827,3.50427216,3416.1,3416.0,0.875]
[1732419107167,3.07167449,3416.1,3416.0,0.875]
[1732419107526,3.86567449,3416.1,3416.0,0.875]
[1732419107755,4.29827216,3416.1,3416.0,0.875]
[1732419109445,4.29803087,3416.1,3416.0,0.875]
[1732419110897,3.50403087,3416.1,3416.0,0.875]
[1732419111065,3.07158169,3416.1,3416.0,0.875]
[1732419112602,3.50403087,3416.1,3416.0,0.875]
[1732419112887,3.07158169,3416.1,3416.0,0.875]
[1732419113396,3.50403087,3416.1,3416.0,0.875]
[1732419113696,4.29803087,3416.1,3416.0,0.875]
[1732419115467,3.50403087,3416.1,3416.0,0.875]
[1732419115674,3.50403087,3416.1,3416.0,1.03919]
[1732419115858,3.07158169,3416.1,3416.0,1.03919]
[1732419116265,0.27028074,3416.1,3416.0,1.80609]
[1732419116522,0.27024141,3416.1,3416.0,1.80609]
[1732419116786,0.27024141,3416.1,3416.0,1.6419]
[1732419116959,2.80130095,3416.5,3416.0,1.6419]
[1732419117360,0.27018322,3416.4,3416.0,1.6419]
[1732419117679,0.27018322,3416.3,3416.0,1.6419]
[1732419117883,0.43229315,3416.4,3416.0,1.6419]
[1732419117884,0.27018322,3416.2,3416.0,1.6419]
[1732419118066,0.27018322,3416.1,3416.0,1.6419]
[1732419118266,2.80130095,3416.5,3416.0,1.6419]
[1732419118566,0.27014209,3416.4,3416.0,1.6419]
[1732419118763,2.80130095,3416.1,3416.0,0.875]
[1732419118998,3.07144304,3416.1,3416.0,0.875]
[1732419119323,4.29397038,3416.1,3416.0,0.875]
[1732419120511,1.49266943,3416.1,3416.0,0.875]
[1732419120688,3.59160095,3416.1,3414.0,3.71117596]
[1732419120891,0.73160536,3416.0,3414.1,0.544]
[1732419121068,0.27012666,3415.9,3414.1,0.36319885]
[1732419121263,0.2994027,3415.8,3414.1,0.36319885]
[1732419121471,3.07142761,3415.7,3414.1,0.36319885]
[1732419121701,0.73167914,3415.6,3414.1,0.36319885]
[1732419122023,0.27012666,3415.5,3414.1,0.36319885]
[1732419122310,0.02927604,3415.4,3414.1,0.36319885]
[1732419122461,0.27012666,3415.3,3413.9,0.2916]
[1732419122804,0.02927604,3415.2,3413.9,0.32088332]
[1732419123289,2.80130095,3414.4,3413.5,2.85]
[1732419123624,0.29948289,3414.3,3413.6,0.285]
[1732419123760,0.27018291,3414.2,3413.7,0.4799]
[1732419124082,0.29945895,3414.1,3413.7,0.4799]
[1732419124272,2.80130095,3414.4,3413.7,0.4799]
[1732419124483,0.26991134,3414.3,3413.7,0.4799]
[1732419124777,0.22312501,3414.2,3413.7,0.4799]
[1732419124982,2.80130095,3414.4,3413.7,0.4799]
[1732419126780,0.02927604,3414.3,3413.7,0.4799]
[1732419127179,2.80130095,3414.4,3413.7,0.4799]
[1732419127478,2.80130095,3414.0,3413.4,0.4799]
[1732419127667,0.02927604,3413.9,3413.4,0.4799]
[1732419128690,2.80130095,3414.0,3413.4,0.4799]
[1732419129300,2.80130095,3413.6,3412.7,0.4799]
[1732419130670,2.80060083,3413.6,3412.7,0.4799]
[1732419130967,0.02927604,3413.5,3412.7,0.4799]
[1732419131501,2.80060083,3413.6,3412.7,0.4799]
[1732419134802,2.80130095,3414.0,3412.9,0.4799]
[1732419135667,0.7884,3414.6,3413.1,0.4799]
[1732419135997,2.80130095,3414.4,3413.3,0.4799]
[1732419136304,0.7884,3415.2,3413.5,0.4799]
[1732419136305,2.80130095,3414.7,3413.5,0.4799]
[1732419136508,2.80130095,3414.7,3413.7,0.4799]
[1732419136812,2.80130095,3415.1,3413.9,0.4799]
[1732419136963,2.80130095,3415.1,3414.1,0.4799]
[1732419137316,0.02927604,3415.0,3414.1,0.4799]
[1732419137464,2.80130095,3415.1,3414.1,0.4799]
[1732419137884,0.02927604,3415.0,3414.1,0.4799]
[1732419138110,2.80130095,3414.7,3414.1,0.4799]
[1732419138780,0.02927604,3414.6,3414.1,0.4799]
[1732419139295,2.80130095,3414.3,3413.1,0.4799]
[1732419140911,2.80130095,3414.3,3413.1,0.7715]
[1732419141734,2.80130095,3414.3,3413.2,0.50919283]
[1732419142092,2.80130095,3414.7,3413.2,0.50919283]
[1732419142336,0.02927604,3414.6,3413.2,0.50919283]
[1732419142632,2.83057699,3414.7,3413.2,0.50919283]
[1732419142820,2.80130095,3414.3,3413.2,0.4799]
[1732419143192,0.02927604,3414.2,3413.2,0.4799]
[1732419143709,2.80130095,3414.3,3413.2,0.4799]
[1732419144330,0.81377604,3414.2,3413.2,0.4799]
[1732419145206,2.80130095,3413.9,3413.2,0.4799]
[1732419146206,2.79357481,3413.9,3413.2,0.4799]
[1732419147900,2.80130095,3414.3,3413.2,0.4799]
[1732419148429,2.83057699,3414.3,3413.2,0.4799]
[1732419148838,2.80130095,3414.3,3413.2,0.4799]
[1732419149460,0.26942123,3414.2,3413.2,0.4799]
[1732419149764,2.80130095,3414.3,3413.2,0.4799]
[1732419150123,0.26943091,3414.2,3413.2,0.4799]
[1732419150322,2.80130095,3414.3,3413.2,0.4799]
[1732419150522,0.26943735,3414.2,3413.2,0.4799]
[1732419150760,2.83057699,3414.3,3413.2,0.4799]
[1732419150958,0.26944484,3414.2,3413.2,0.4799]
[1732419151124,2.83057699,3414.3,3413.2,0.4799]
[1732419151326,0.26946349,3414.2,3413.2,0.4799]
[1732419151555,2.83057699,3414.3,3413.2,0.4799]
[1732419151757,0.26958052,3414.2,3413.2,0.4799]
[1732419152064,0.26958052,3414.1,3413.2,0.4799]
[1732419152365,0.02927604,3414.0,3413.2,0.4799]
[1732419152551,0.02927604,3414.2,3413.2,0.4799]
[1732419152726,0.26976419,3414.1,3413.2,0.4799]
[1732419152925,0.02927604,3414.2,3413.2,0.4799]
[1732419152926,0.26976419,3414.0,3413.2,0.4799]
[1732419153152,0.02927604,3414.2,3413.2,0.4799]
[1732419153319,0.26995415,3414.1,3413.2,0.4799]
[1732419153670,2.80130095,3414.3,3413.3,0.50919536]
[1732419153875,0.7845,3414.6,3413.3,0.50919536]
[1732419153876,0.7845,3415.0,3413.4,0.4799]
[1732419154168,3.07128164,3414.9,3413.6,0.4799]
[1732419154339,0.26998069,3414.8,3413.8,0.4799]
[1732419154547,0.26998069,3414.7,3413.8,0.4799]
[1732419154848,2.80130095,3414.9,3414.0,0.4799]
[1732419155059,0.26999955,3414.8,3414.0,0.4799]
[1732419155261,2.80130095,3415.4,3414.1,0.0292883]
[1732419155460,0.2699739,3415.3,3414.2,0.4799]
[1732419155664,0.2699739,3415.2,3414.2,0.4799]
[1732419155838,0.43199928,3415.3,3414.2,0.4799]
[1732419155839,0.2699739,3415.1,3414.2,0.4799]
[1732419156024,0.43199928,3415.3,3414.4,0.4799]
[1732419156230,2.80130095,3415.4,3414.4,0.4799]
[1732419156462,0.26987139,3415.3,3414.4,0.4799]
[1732419156645,2.80130095,3415.4,3414.4,0.4799]
[1732419156943,0.26989892,3415.3,3414.4,0.4799]
[1732419157166,2.80130095,3415.4,3414.4,0.4799]
[1732419157753,0.02927604,3415.3,3414.4,0.4799]
[1732419157952,2.80130095,3415.4,3414.4,0.4799]
[1732419158156,0.02927604,3415.3,3414.4,0.4799]
[1732419158530,2.80130095,3415.4,3414.4,0.4799]
[1732419158733,0.02927604,3415.3,3414.4,0.4799]
[1732419159443,2.8020618,3415.4,3414.4,0.4799]
[1732419160966,2.8020618,3416.2,3414.6,0.4799]
[1732419161170,0.26958183,3416.1,3414.8,0.4799]
[1732419161369,2.8020618,3416.6,3415.0,0.4799]
[1732419161572,0.2695142,3416.5,3415.2,0.4799]
[1732419161864,2.8020618,3416.6,3415.3,0.50917361]
[1732419164310,0.7778,3417.1,3415.3,0.50917361]
[1732419164519,2.8020618,3416.9,3415.3,0.50917361]
[1732419164934,2.8020618,3416.9,3415.3,0.60917361]
[1732419165207,2.8020618,3416.9,3415.4,0.4799]
[1732419165414,2.8020618,3417.3,3415.6,0.5799]
[1732419165614,2.8020618,3417.3,3415.8,0.4799]
[1732419165819,2.8020618,3417.3,3416.0,0.4799]
[1732419167522,2.8020618,3417.3,3416.1,0.02926745]
[1732419167825,2.8020618,3417.3,3416.2,0.4799]
[1732419169218,0.02927604,3417.2,3416.2,0.4799]
[1732419170015,0.8302,3417.1,3416.2,0.4799]
[1732419170728,2.8020618,3417.3,3416.2,0.4799]
[1732419172036,0.02927604,3417.2,3416.2,0.4799]
[1732419173120,2.8020618,3417.3,3416.2,0.4799]
[1732419174991,0.8302,3417.7,3416.4,0.4799]
[1732419174992,2.8020618,3417.7,3416.4,0.4799]
[1732419175233,2.8020618,3417.7,3416.5,0.32086451]
[1732419175530,4.25836662,3418.8,3416.5,0.32086451]
[1732419175531,2.8020618,3418.1,3416.7,0.4799]
[1732419175713,2.8020618,3418.1,3416.7,0.50916176]
[1732419175929,2.8020618,3418.1,3416.8,0.4799]
[1732419176227,2.8020618,3418.1,3417.0,0.4799]
[1732419176434,0.02927604,3418.0,3417.0,0.4799]
[1732419176732,2.83133784,3418.1,3417.0,0.4799]
[1732419177096,2.8020618,3418.1,3417.0,0.4799]
[1732419177835,2.8020618,3418.1,3416.6,0.2916]
[1732419178016,2.8020618,3418.1,3416.8,0.4799]
[1732419178331,2.8020618,3418.4,3417.1,0.2916]
[1732419178536,2.8020618,3418.4,3417.2,0.4799]
[1732419179542,0.02927604,3418.3,3417.2,0.4799]
[1732419181405,2.8020618,3418.4,3417.2,0.4799]
[1732419182600,0.02927604,3418.3,3417.2,0.4799]
[1732419182796,2.8020618,3418.4,3417.2,0.4799]
[1732419184017,2.83133784,3418.4,3417.2,0.4799]
[1732419184734,2.8020618,3418.4,3417.2,0.4799]
[1732419185550,0.02927604,3418.3,3417.2,0.4799]
[1732419186126,2.8020618,3418.4,3417.2,0.4799]
[1732419186663,0.02927604,3418.7,3417.4,0.4799]
[1732419187852,2.8020618,3418.4,3417.4,0.4799]
[1732419188127,0.7805,3418.2,3417.4,0.4799]
[1732419188355,0.02927604,3418.3,3417.4,0.4799]
[1732419188568,0.02927604,3418.2,3417.4,0.4799]
[1732419189452,2.8020618,3418.4,3417.4,0.4799]
[1732419189818,2.83133784,3418.4,3417.4,0.4799]
[1732419190003,0.02927604,3418.4,3417.4,0.4799]
[1732419190186,2.8020618,3418.7,3417.4,0.4799]
[1732419190514,2.8020618,3418.7,3417.6,0.4799]
[1732419191093,0.26957591,3418.6,3417.6,0.4799]
[1732419191397,2.8020618,3418.7,3417.6,0.4799]
[1732419191551,0.26966485,3418.6,3417.6,0.4799]
[1732419191887,2.8020618,3418.7,3417.6,0.4799]
[1732419191888,0.02927604,3418.5,3417.6,0.4799]
[1732419192066,2.8020618,3418.7,3417.6,0.4799]
[1732419192249,0.26971524,3418.6,3417.6,0.4799]
[1732419192445,0.29899128,3418.5,3417.6,0.4799]
[1732419192676,2.83133784,3418.7,3417.6,0.4799]
[1732419192872,0.26970487,3418.6,3417.6,0.4799]
[1732419193082,2.83133784,3418.7,3417.6,0.4799]
[1732419193287,0.26977785,3418.6,3417.7,0.50915677]
[1732419193446,3.5825618,3419.1,3417.7,0.50915677]
[1732419193678,0.26978517,3419.0,3417.7,0.50915468]
[1732419193881,3.5825618,3419.1,3417.7,0.50915468]
[1732419193882,0.26978517,3418.9,3417.7,0.50915468]
[1732419194081,2.8020618,3419.1,3417.7,0.50915468]
[1732419194278,0.26989212,3419.0,3417.7,0.50915468]
[1732419194512,0.26989212,3418.9,3417.7,0.50915468]
[1732419194671,2.8020618,3419.1,3417.7,0.50915468]
[1732419194867,0.26988412,3419.0,3417.7,0.50915468]
[1732419195112,0.26988412,3418.9,3417.7,0.50915468]
[1732419195315,2.8020618,3419.1,3417.7,0.50915468]